[Event "*** Titled Tuesday Blitz"]
[Site "Chess.com"]
[Date "2020.04.28"]
[Round "7"]
[White "Pedrada88"]
[Black "kushagramohan"]
[Result "0-1"]
[WhiteElo "2426"]
[BlackElo "2680"]
[TimeControl "180+1"]
[EndTime "11:21:25 PDT"]
[Termination "kushagramohan won on time"]

1. Nf3 {[%clk 0:03:00.9]} 1... Nf6 {[%clk 0:02:59.7]} 2. g3 {[%clk 0:03:01.4]}
2... g6 {[%clk 0:02:58.9]} 3. Bg2 {[%clk 0:03:02.3]} 3... Bg7 {[%clk 0:02:59.5]}
4. d4 {[%clk 0:03:03]} 4... c5 {[%clk 0:02:58.9]} 5. c3 {[%clk 0:03:02.4]} 5...
cxd4 {[%clk 0:02:57.3]} 6. cxd4 {[%clk 0:03:03.3]} 6... O-O {[%clk 0:02:46.2]}
7. O-O {[%clk 0:03:04.2]} 7... d6 {[%clk 0:02:45.4]} 8. Nc3 {[%clk 0:03:03.9]}
8... Nbd7 {[%clk 0:02:44.3]} 9. h3 {[%clk 0:03:02.1]} 9... Rb8 {[%clk
0:02:44.3]} 10. a4 {[%clk 0:02:58.1]} 10... b6 {[%clk 0:02:43.8]} 11. e4 {[%clk
0:02:56]} 11... Bb7 {[%clk 0:02:43.4]} 12. Re1 {[%clk 0:02:56.4]} 12... e5
{[%clk 0:02:42.4]} 13. Ra3 {[%clk 0:02:06.1]} 13... Re8 {[%clk 0:02:40]} 14.
dxe5 {[%clk 0:02:05.8]} 14... Nxe5 {[%clk 0:02:37.6]} 15. Nb5 {[%clk 0:01:53.1]}
15... Nxf3+ {[%clk 0:02:32.4]} 16. Bxf3 {[%clk 0:01:48.6]} 16... Nxe4 {[%clk
0:02:21.3]} 17. Bf4 {[%clk 0:01:20.8]} 17... Nc5 {[%clk 0:01:52.9]} 18. Rxe8+
{[%clk 0:01:13.1]} 18... Qxe8 {[%clk 0:01:52.7]} 19. Bxd6 {[%clk 0:01:04.9]}
19... Rd8 {[%clk 0:01:49.4]} 20. Re3 {[%clk 0:00:49.1]} 20... Qd7 {[%clk
0:01:43.3]} 21. Qe2 {[%clk 0:00:39.1]} 21... Bxf3 {[%clk 0:01:40.2]} 22. Qxf3
{[%clk 0:00:37.7]} 22... Ne6 {[%clk 0:01:14.3]} 23. Be5 {[%clk 0:00:28.8]} 23...
Ng5 {[%clk 0:01:07.7]} 24. Qe2 {[%clk 0:00:18.5]} 24... Bxe5 {[%clk 0:00:49.2]}
25. Rxe5 {[%clk 0:00:19.4]} 25... Ne6 {[%clk 0:00:40.7]} 26. Kh2 {[%clk
0:00:16.5]} 26... a6 {[%clk 0:00:36.5]} 27. Nc3 {[%clk 0:00:16.3]} 27... Nd4
{[%clk 0:00:36.6]} 28. Qe3 {[%clk 0:00:14.3]} 28... Qc6 {[%clk 0:00:34.3]} 29.
Ne4 {[%clk 0:00:12.8]} 29... Ne6 {[%clk 0:00:20.7]} 30. Qh6 {[%clk 0:00:09.9]}
30... Nf8 {[%clk 0:00:12.8]} 31. Qh4 {[%clk 0:00:06.1]} 31... Qc7 {[%clk
0:00:08.8]} 32. Nf6+ {[%clk 0:00:05.7]} 32... Kh8 {[%clk 0:00:08.9]} 33. Re3
{[%clk 0:00:02.9]} 33... Qd6 {[%clk 0:00:09.1]} 34. Ne4 {[%clk 0:00:02.9]} 34...
Qd4 {[%clk 0:00:08.3]} 35. Rf3 {[%clk 0:00:02.6]} 35... f5 {[%clk 0:00:07.6]}
36. Qf6+ {[%clk 0:00:02.5]} 36... Qxf6 {[%clk 0:00:07.7]} 37. Nxf6 {[%clk
0:00:03.4]} 37... Kg7 {[%clk 0:00:08.2]} 38. Rc3 {[%clk 0:00:01.2]} 38... Kxf6
{[%clk 0:00:08.5]} 39. Rc6+ {[%clk 0:00:02.1]} 39... Ne6 {[%clk 0:00:09.2]} 40.
Rxb6 {[%clk 0:00:03]} 40... Rd2 {[%clk 0:00:09.8]} 41. Rxa6 {[%clk 0:00:02.9]}
41... Rxf2+ {[%clk 0:00:09.7]} 42. Kg1 {[%clk 0:00:03.4]} 42... Rxb2 {[%clk
0:00:10.4]} 43. Ra7 {[%clk 0:00:03.9]} 43... Ra2 {[%clk 0:00:10.9]} 44. a5
{[%clk 0:00:02.3]} 44... h5 {[%clk 0:00:11.4]} 45. a6 {[%clk 0:00:02.7]} 45...
g5 {[%clk 0:00:11.7]} 46. Ra8 {[%clk 0:00:03.1]} 46... Ke5 {[%clk 0:00:11.5]}
47. a7 {[%clk 0:00:03.5]} 47... g4 {[%clk 0:00:12]} 48. hxg4 {[%clk 0:00:03.7]}
48... hxg4 {[%clk 0:00:12.9]} 49. Kf1 {[%clk 0:00:04.2]} 49... Ra3 {[%clk
0:00:13.2]} 50. Kf2 {[%clk 0:00:04.1]} 50... Ra2+ {[%clk 0:00:13.1]} 51. Ke3
{[%clk 0:00:04.3]} 51... Ra3+ {[%clk 0:00:13]} 52. Kf2 {[%clk 0:00:04.7]} 52...
Ra5 {[%clk 0:00:13.5]} 53. Ke3 {[%clk 0:00:04.8]} 53... Ra6 {[%clk 0:00:13.8]}
54. Kf2 {[%clk 0:00:05]} 54... Ke4 {[%clk 0:00:14]} 55. Re8 {[%clk 0:00:04.1]}
55... Rxa7 {[%clk 0:00:14.2]} 56. Rxe6+ {[%clk 0:00:04.3]} 56... Kd5 {[%clk
0:00:14.8]} 57. Re2 {[%clk 0:00:04.4]} 57... Ra3 {[%clk 0:00:14]} 58. Kg2 {[%clk
0:00:04.3]} 58... Rf3 {[%clk 0:00:14.6]} 59. Re8 {[%clk 0:00:03.2]} 59... Kd4
{[%clk 0:00:15.1]} 60. Re7 {[%clk 0:00:03.1]} 60... Re3 {[%clk 0:00:15.2]} 61.
Rd7+ {[%clk 0:00:03.2]} 61... Ke4 {[%clk 0:00:15.1]} 62. Re7+ {[%clk 0:00:03.6]}
62... Kd4 {[%clk 0:00:15.5]} 63. Rd7+ {[%clk 0:00:04.1]} 63... Kc5 {[%clk
0:00:15.8]} 64. Rf7 {[%clk 0:00:03.9]} 64... Re5 {[%clk 0:00:16.3]} 65. Kf2
{[%clk 0:00:04.2]} 65... Kd5 {[%clk 0:00:16.9]} 66. Rd7+ {[%clk 0:00:04.5]}
66... Ke6 {[%clk 0:00:17.3]} 67. Rd4 {[%clk 0:00:04.7]} 67... Rd5 {[%clk
0:00:17.6]} 68. Ra4 {[%clk 0:00:04.7]} 68... Re5 {[%clk 0:00:17.8]} 69. Ra6+
{[%clk 0:00:05]} 69... Kf7 {[%clk 0:00:17.8]} 70. Ra7+ {[%clk 0:00:05.1]} 70...
Re7 {[%clk 0:00:17.5]} 71. Ra6 {[%clk 0:00:06]} 71... Re6 {[%clk 0:00:17.4]} 72.
Ra5 {[%clk 0:00:06.3]} 72... Kf6 {[%clk 0:00:18]} 73. Ra8 {[%clk 0:00:06.8]}
73... Rb6 {[%clk 0:00:18.2]} 74. Rf8+ {[%clk 0:00:06.9]} 74... Ke5 {[%clk
0:00:18.4]} 75. Re8+ {[%clk 0:00:07.3]} 75... Re6 {[%clk 0:00:19]} 76. Rf8
{[%clk 0:00:07.3]} 76... Rf6 {[%clk 0:00:18.5]} 77. Re8+ {[%clk 0:00:07.4]}
77... Kd6 {[%clk 0:00:18.9]} 78. Re3 {[%clk 0:00:06.7]} 78... Kd7 {[%clk
0:00:18.9]} 79. Rd3+ {[%clk 0:00:06.5]} 79... Rd6 {[%clk 0:00:19.2]} 80. Re3
{[%clk 0:00:06.6]} 80... Re6 {[%clk 0:00:19.5]} 81. Rd3+ {[%clk 0:00:07]} 81...
Ke7 {[%clk 0:00:19.9]} 82. Rd5 {[%clk 0:00:07.4]} 82... Kf6 {[%clk 0:00:20.2]}
83. Rd8 {[%clk 0:00:07.5]} 83... Ra6 {[%clk 0:00:20.4]} 84. Rf8+ {[%clk
0:00:07.5]} 84... Kg5 {[%clk 0:00:20.7]} 85. Rg8+ {[%clk 0:00:07.7]} 85... Rg6
{[%clk 0:00:21.1]} 86. Rf8 {[%clk 0:00:07.6]} 86... Rh6 {[%clk 0:00:21.6]} 87.
Rg8+ {[%clk 0:00:07.7]} 87... Kf6 {[%clk 0:00:22.1]} 88. Rf8+ {[%clk 0:00:08.1]}
88... Ke6 {[%clk 0:00:22.6]} 89. Re8+ {[%clk 0:00:08.3]} 89... Kf7 {[%clk
0:00:23.1]} 90. Ra8 {[%clk 0:00:08.3]} 90... Rh2+ {[%clk 0:00:22.2]} 91. Ke3
{[%clk 0:00:07.8]} 91... Rg2 {[%clk 0:00:22.5]} 92. Kf4 {[%clk 0:00:07.8]} 92...
Rf2+ {[%clk 0:00:22.9]} 93. Kg5 {[%clk 0:00:08]} 93... Rf3 {[%clk 0:00:23.1]}
94. Ra7+ {[%clk 0:00:07.6]} 94... Ke6 {[%clk 0:00:23.5]} 95. Ra6+ {[%clk
0:00:08]} 95... Ke5 {[%clk 0:00:23.6]} 96. Ra5+ {[%clk 0:00:08.1]} 96... Ke4
{[%clk 0:00:24]} 97. Ra4+ {[%clk 0:00:08.2]} 97... Ke3 {[%clk 0:00:24.4]} 98.
Ra3+ {[%clk 0:00:07.7]} 98... Kf2 {[%clk 0:00:24.5]} 99. Ra5 {[%clk 0:00:05.7]}
99... Kxg3 {[%clk 0:00:24.6]} 100. Ra1 {[%clk 0:00:05.5]} 100... Kf2 {[%clk
0:00:24.3]} 101. Ra2+ {[%clk 0:00:05.2]} 101... Kg3 {[%clk 0:00:23.7]} 102. Ra1
{[%clk 0:00:04.9]} 102... Kg2 {[%clk 0:00:24.1]} 103. Ra2+ {[%clk 0:00:05.1]}
103... Rf2 {[%clk 0:00:24.5]} 104. Ra1 {[%clk 0:00:05.4]} 104... g3 {[%clk
0:00:24.9]} 105. Kh4 {[%clk 0:00:05.4]} 105... f4 {[%clk 0:00:25.1]} 106. Kg4
{[%clk 0:00:05.5]} 106... f3 {[%clk 0:00:23.3]} 107. Ra3 {[%clk 0:00:02.4]}
107... Rf1 {[%clk 0:00:23]} 108. Re3 {[%clk 0:00:01.2]} 108... Rf2 {[%clk
0:00:23]} 0-1

[Event "*** Titled Tuesday Blitz"]
[Site "Chess.com"]
[Date "2020.04.28"]
[Round "7"]
[White "Ali_rastbod"]
[Black "AryanTari"]
[Result "1/2-1/2"]
[WhiteElo "2599"]
[BlackElo "2883"]
[TimeControl "180+1"]
[EndTime "11:21:36 PDT"]
[Termination "Game drawn - insufficient material"]

1. c4 {[%clk 0:03:00.9]} 1... e6 {[%clk 0:02:57.6]} 2. Nf3 {[%clk 0:03:00.5]}
2... d5 {[%clk 0:02:56.9]} 3. g3 {[%clk 0:02:58.2]} 3... Nf6 {[%clk 0:02:56.8]}
4. Bg2 {[%clk 0:02:57.7]} 4... Be7 {[%clk 0:02:54.8]} 5. O-O {[%clk 0:02:57.6]}
5... O-O {[%clk 0:02:55.3]} 6. d4 {[%clk 0:02:57.5]} 6... dxc4 {[%clk
0:02:52.7]} 7. Qc2 {[%clk 0:02:57.7]} 7... a6 {[%clk 0:02:52.1]} 8. a4 {[%clk
0:02:58.3]} 8... Bd7 {[%clk 0:02:46.7]} 9. Rd1 {[%clk 0:02:58.7]} 9... Bc6
{[%clk 0:02:41.8]} 10. Nc3 {[%clk 0:02:59.2]} 10... Bxf3 {[%clk 0:02:27.5]} 11.
Bxf3 {[%clk 0:03:00.1]} 11... Nc6 {[%clk 0:02:28]} 12. Bxc6 {[%clk 0:03:00.7]}
12... bxc6 {[%clk 0:02:28.3]} 13. a5 {[%clk 0:03:01.6]} 13... Rb8 {[%clk
0:02:21.7]} 14. Ra4 {[%clk 0:03:01.3]} 14... Rb4 {[%clk 0:02:17.8]} 15. Na2
{[%clk 0:02:03.1]} 15... Rxa4 {[%clk 0:02:14.2]} 16. Qxa4 {[%clk 0:02:04]} 16...
Qb8 {[%clk 0:01:53.7]} 17. Nc3 {[%clk 0:01:56.5]} 17... Qb3 {[%clk 0:01:46.3]}
18. Qxb3 {[%clk 0:01:48]} 18... cxb3 {[%clk 0:01:47.2]} 19. Bf4 {[%clk
0:01:48.7]} 19... Bb4 {[%clk 0:01:33.6]} 20. Rc1 {[%clk 0:01:48.3]} 20... Bxa5
{[%clk 0:01:32.2]} 21. Na4 {[%clk 0:01:48.4]} 21... Ra8 {[%clk 0:00:36.8]} 22.
Rxc6 {[%clk 0:01:41.8]} 22... Nd5 {[%clk 0:00:36.7]} 23. e4 {[%clk 0:00:36]}
23... Nb4 {[%clk 0:00:33]} 24. Rc3 {[%clk 0:00:31.5]} 24... Rd8 {[%clk
0:00:27.4]} 25. Bxc7 {[%clk 0:00:24.8]} 25... Bxc7 {[%clk 0:00:24]} 26. Rxc7
{[%clk 0:00:25.7]} 26... g5 {[%clk 0:00:21.5]} 27. Rc4 {[%clk 0:00:17.9]} 27...
Nc2 {[%clk 0:00:17.1]} 28. Nc5 {[%clk 0:00:11.8]} 28... Nxd4 {[%clk 0:00:13.4]}
29. Nb7 {[%clk 0:00:11.9]} 29... Nf3+ {[%clk 0:00:08.7]} 30. Kg2 {[%clk
0:00:08.6]} 30... Ne1+ {[%clk 0:00:09.1]} 31. Kf1 {[%clk 0:00:08.7]} 31... Rd1
{[%clk 0:00:09.7]} 32. Ke2 {[%clk 0:00:09.1]} 32... Rb1 {[%clk 0:00:10.2]} 33.
Nc5 {[%clk 0:00:06.4]} 33... g4 {[%clk 0:00:06.5]} 34. Nxb3 {[%clk 0:00:05.1]}
34... Rxb2+ {[%clk 0:00:06.3]} 35. Kxe1 {[%clk 0:00:05.2]} 35... Rxb3 {[%clk
0:00:06.9]} 36. Rc8+ {[%clk 0:00:03.4]} 36... Kg7 {[%clk 0:00:06.7]} 37. Ra8
{[%clk 0:00:04.3]} 37... Ra3 {[%clk 0:00:06.9]} 38. Ke2 {[%clk 0:00:03.8]} 38...
h5 {[%clk 0:00:06.9]} 39. Ra7 {[%clk 0:00:03.8]} 39... Kf6 {[%clk 0:00:06.6]}
40. Ra8 {[%clk 0:00:04.1]} 40... a5 {[%clk 0:00:07]} 41. Ra6 {[%clk 0:00:04.2]}
41... a4 {[%clk 0:00:06.5]} 42. Ra5 {[%clk 0:00:04.3]} 42... Kg6 {[%clk
0:00:06.2]} 43. Kf1 {[%clk 0:00:04]} 43... Ra1+ {[%clk 0:00:05.9]} 44. Kg2
{[%clk 0:00:04.3]} 44... a3 {[%clk 0:00:06.1]} 45. Ra6 {[%clk 0:00:03.7]} 45...
Kf6 {[%clk 0:00:06.1]} 46. Ra5 {[%clk 0:00:04.1]} 46... Kg6 {[%clk 0:00:04.4]}
47. h3 {[%clk 0:00:04.5]} 47... gxh3+ {[%clk 0:00:03.1]} 48. Kxh3 {[%clk
0:00:05.4]} 48... Re1 {[%clk 0:00:02.8]} 49. Rxa3 {[%clk 0:00:04.3]} 49... Rxe4
{[%clk 0:00:03.5]} 50. Kg2 {[%clk 0:00:04.9]} 50... Rb4 {[%clk 0:00:04.1]} 51.
Ra8 {[%clk 0:00:05.2]} 51... Rb5 {[%clk 0:00:04.3]} 52. Rg8+ {[%clk 0:00:05.7]}
52... Kh7 {[%clk 0:00:04.9]} 53. Rf8 {[%clk 0:00:06]} 53... Kg7 {[%clk
0:00:05.3]} 54. Ra8 {[%clk 0:00:06.6]} 54... Rd5 {[%clk 0:00:05.9]} 55. Ra4
{[%clk 0:00:07]} 55... Kg6 {[%clk 0:00:06.4]} 56. Ra1 {[%clk 0:00:07.5]} 56...
Rd2 {[%clk 0:00:06.8]} 57. Ra8 {[%clk 0:00:07.8]} 57... e5 {[%clk 0:00:06.9]}
58. Rg8+ {[%clk 0:00:08.3]} 58... Kf6 {[%clk 0:00:07]} 59. Re8 {[%clk
0:00:08.8]} 59... Rd6 {[%clk 0:00:06.4]} 60. Rh8 {[%clk 0:00:09]} 60... Kg6
{[%clk 0:00:06.2]} 61. Re8 {[%clk 0:00:09.5]} 61... f6 {[%clk 0:00:06.1]} 62.
Rg8+ {[%clk 0:00:09.9]} 62... Kh7 {[%clk 0:00:06.3]} 63. Rf8 {[%clk 0:00:10.3]}
63... Kg7 {[%clk 0:00:06.8]} 64. Re8 {[%clk 0:00:10.7]} 64... Rd3 {[%clk
0:00:07.2]} 65. Re7+ {[%clk 0:00:10.9]} 65... Kg6 {[%clk 0:00:07.5]} 66. Re8
{[%clk 0:00:11.3]} 66... Rd2 {[%clk 0:00:08]} 67. Rg8+ {[%clk 0:00:11.5]} 67...
Kh7 {[%clk 0:00:08.6]} 68. Rf8 {[%clk 0:00:11.5]} 68... Kg7 {[%clk 0:00:08.9]}
69. Re8 {[%clk 0:00:12.4]} 69... Rc2 {[%clk 0:00:06.2]} 70. Re7+ {[%clk
0:00:12.6]} 70... Kg6 {[%clk 0:00:06.6]} 71. Re8 {[%clk 0:00:12.8]} 71... Rb2
{[%clk 0:00:06.8]} 72. Rg8+ {[%clk 0:00:13.2]} 72... Kh7 {[%clk 0:00:07.1]} 73.
Rf8 {[%clk 0:00:13.5]} 73... Kg7 {[%clk 0:00:07.5]} 74. Re8 {[%clk 0:00:14.1]}
74... Rb4 {[%clk 0:00:07.6]} 75. Re7+ {[%clk 0:00:13.8]} 75... Kg6 {[%clk
0:00:07.9]} 76. Re8 {[%clk 0:00:14.1]} 76... e4 {[%clk 0:00:08.4]} 77. Rg8+
{[%clk 0:00:14]} 77... Kh7 {[%clk 0:00:08.8]} 78. Rf8 {[%clk 0:00:14.1]} 78...
Kg7 {[%clk 0:00:09.3]} 79. Re8 {[%clk 0:00:14.7]} 79... f5 {[%clk 0:00:09.2]}
80. Re7+ {[%clk 0:00:14.6]} 80... Kf6 {[%clk 0:00:09]} 81. Re8 {[%clk
0:00:15.1]} 81... Rb2 {[%clk 0:00:08.8]} 82. Kg1 {[%clk 0:00:10.7]} 82... Ra2
{[%clk 0:00:06.9]} 83. Kg2 {[%clk 0:00:10.7]} 83... h4 {[%clk 0:00:05]} 84. gxh4
{[%clk 0:00:08]} 84... f4 {[%clk 0:00:05.6]} 85. Rxe4 {[%clk 0:00:07.7]} 85...
Kf5 {[%clk 0:00:04.7]} 86. Re8 {[%clk 0:00:07.8]} 86... Kg4 {[%clk 0:00:05.3]}
87. Rg8+ {[%clk 0:00:07.4]} 87... Kxh4 {[%clk 0:00:05.8]} 88. Kf3 {[%clk
0:00:08.1]} 88... Kh5 {[%clk 0:00:05.5]} 89. Rg1 {[%clk 0:00:05.4]} 89... Kh6
{[%clk 0:00:05]} 90. Rg2 {[%clk 0:00:05]} 90... Kh5 {[%clk 0:00:04.7]} 91. Kxf4
{[%clk 0:00:04.6]} 91... Ra4+ {[%clk 0:00:05.4]} 92. Kf5 {[%clk 0:00:05]} 92...
Ra5+ {[%clk 0:00:06]} 93. Ke4 {[%clk 0:00:05.5]} 93... Ra4+ {[%clk 0:00:06.4]}
94. Kf3 {[%clk 0:00:05.9]} 94... Ra3+ {[%clk 0:00:06.4]} 95. Kf4 {[%clk
0:00:06.5]} 95... Ra4+ {[%clk 0:00:06.9]} 96. Kf5 {[%clk 0:00:07.1]} 96... Ra5+
{[%clk 0:00:07.3]} 97. Kf6 {[%clk 0:00:07.8]} 97... Ra6+ {[%clk 0:00:07]} 98.
Kg7 {[%clk 0:00:08.3]} 98... Ra7+ {[%clk 0:00:06.7]} 99. Kh8 {[%clk 0:00:08.8]}
99... Ra8+ {[%clk 0:00:07.2]} 100. Rg8 {[%clk 0:00:09]} 100... Rxg8+ {[%clk
0:00:04.9]} 101. Kxg8 {[%clk 0:00:09.8]} 101... Kg6 {[%clk 0:00:05.8]} 102. f4
{[%clk 0:00:10.5]} 102... Kf6 {[%clk 0:00:05.9]} 103. Kf8 {[%clk 0:00:10.8]}
103... Ke6 {[%clk 0:00:05.9]} 104. Kg7 {[%clk 0:00:10.9]} 104... Kf5 {[%clk
0:00:06.1]} 105. Kf7 {[%clk 0:00:11.8]} 105... Ke4 {[%clk 0:00:06.2]} 106. f5
{[%clk 0:00:10.8]} 106... Kxf5 {[%clk 0:00:06.2]} 1/2-1/2

[Event "*** Titled Tuesday Blitz"]
[Site "Chess.com"]
[Date "2020.04.28"]
[Round "8"]
[White "chessuriel"]
[Black "godsgonnacutudown"]
[Result "0-1"]
[WhiteElo "2208"]
[BlackElo "2347"]
[TimeControl "180+1"]
[EndTime "11:30:09 PDT"]
[Termination "godsgonnacutudown won by resignation"]

1. e4 {[%clk 0:03:00.9]} 1... c6 {[%clk 0:02:57.9]} 2. d4 {[%clk 0:03:00.1]}
2... d5 {[%clk 0:02:58.3]} 3. Nd2 {[%clk 0:03:00.5]} 3... dxe4 {[%clk
0:02:58.6]} 4. Nxe4 {[%clk 0:03:01.4]} 4... Bf5 {[%clk 0:02:59.3]} 5. Ng3 {[%clk
0:03:01.4]} 5... Bg6 {[%clk 0:02:59.9]} 6. Bc4 {[%clk 0:03:01.6]} 6... e6 {[%clk
0:03:00.1]} 7. N1e2 {[%clk 0:03:02]} 7... Nf6 {[%clk 0:03:00.7]} 8. h4 {[%clk
0:02:59.2]} 8... Nbd7 {[%clk 0:03:00.8]} 9. Nf4 {[%clk 0:02:56.2]} 9... Nb6
{[%clk 0:03:00.5]} 10. Bb3 {[%clk 0:02:55.8]} 10... c5 {[%clk 0:03:00.9]} 11. h5
{[%clk 0:02:33.7]} 11... Be4 {[%clk 0:02:59.6]} 12. Nxe4 {[%clk 0:02:28.8]}
12... Nxe4 {[%clk 0:03:00]} 13. Qe2 {[%clk 0:02:25.9]} 13... Qxd4 {[%clk
0:03:00.3]} 14. c3 {[%clk 0:02:19.2]} 14... Nxc3 {[%clk 0:02:46.8]} 15. Qb5+
{[%clk 0:02:13.8]} 15... Nxb5 {[%clk 0:02:44.1]} 0-1

[Event "*** Titled Tuesday Blitz"]
[Site "Chess.com"]
[Date "2020.04.28"]
[Round "8"]
[White "elohunter1999"]
[Black "Saloni1299"]
[Result "1-0"]
[WhiteElo "2515"]
[BlackElo "2338"]
[TimeControl "180+1"]
[EndTime "11:30:19 PDT"]
[Termination "elohunter1999 won by resignation"]

1. e4 {[%clk 0:03:00.9]} 1... e6 {[%clk 0:03:00.1]} 2. d4 {[%clk 0:03:00.2]}
2... d5 {[%clk 0:03:00.5]} 3. Nc3 {[%clk 0:03:00.8]} 3... Bb4 {[%clk 0:03:00.6]}
4. e5 {[%clk 0:03:00.1]} 4... c5 {[%clk 0:03:00.8]} 5. a3 {[%clk 0:03:00.7]}
5... Bxc3+ {[%clk 0:03:01.4]} 6. bxc3 {[%clk 0:03:01.6]} 6... Ne7 {[%clk
0:03:02.1]} 7. Qg4 {[%clk 0:03:01.8]} 7... Qc7 {[%clk 0:03:02.4]} 8. Qxg7 {[%clk
0:03:02.2]} 8... Rg8 {[%clk 0:03:02.9]} 9. Qxh7 {[%clk 0:03:02.8]} 9... cxd4
{[%clk 0:03:03.3]} 10. Ne2 {[%clk 0:03:03.2]} 10... Nbc6 {[%clk 0:03:00.9]} 11.
f4 {[%clk 0:03:03.7]} 11... dxc3 {[%clk 0:03:01.3]} 12. h4 {[%clk 0:03:03.9]}
12... b6 {[%clk 0:02:54.6]} 13. Nxc3 {[%clk 0:03:00.5]} 13... Nxe5 {[%clk
0:02:50.7]} 14. Nb5 {[%clk 0:02:58]} 14... Qc5 {[%clk 0:02:32.4]} 15. fxe5
{[%clk 0:02:36.9]} 15... Bd7 {[%clk 0:02:21.3]} 16. Nd6+ {[%clk 0:02:35.5]}
16... Kd8 {[%clk 0:02:19.6]} 17. Nb7+ {[%clk 0:02:35.4]} 1-0

[Event "*** Titled Tuesday Blitz"]
[Site "Chess.com"]
[Date "2020.04.28"]
[Round "8"]
[White "morfius"]
[Black "LittlePeasant"]
[Result "0-1"]
[WhiteElo "2609"]
[BlackElo "2761"]
[TimeControl "180+1"]
[EndTime "11:30:29 PDT"]
[Termination "LittlePeasant won by resignation"]

1. e4 {[%clk 0:03:00.9]} 1... c5 {[%clk 0:02:59]} 2. Nf3 {[%clk 0:03:01.1]} 2...
e6 {[%clk 0:02:58.9]} 3. d4 {[%clk 0:03:01.2]} 3... cxd4 {[%clk 0:02:59.8]} 4.
Nxd4 {[%clk 0:03:01.7]} 4... Nc6 {[%clk 0:03:00.5]} 5. Nc3 {[%clk 0:03:02.2]}
5... Qc7 {[%clk 0:03:00.7]} 6. Be3 {[%clk 0:03:02.1]} 6... a6 {[%clk 0:03:01.2]}
7. a3 {[%clk 0:03:02.5]} 7... b5 {[%clk 0:03:00.3]} 8. Nxc6 {[%clk 0:03:01.6]}
8... Qxc6 {[%clk 0:03:00.7]} 9. Be2 {[%clk 0:02:55.9]} 9... Bb7 {[%clk
0:03:01.1]} 10. Bf3 {[%clk 0:02:56.2]} 10... Qc7 {[%clk 0:03:00.4]} 11. e5
{[%clk 0:02:46.1]} 11... Rc8 {[%clk 0:03:00.5]} 12. O-O {[%clk 0:02:39]} 12...
Ne7 {[%clk 0:02:58.3]} 13. Bxb7 {[%clk 0:02:18.8]} 13... Qxb7 {[%clk 0:02:58.2]}
14. Qd3 {[%clk 0:02:19.6]} 14... Nf5 {[%clk 0:02:36.1]} 15. Bg5 {[%clk
0:02:19.7]} 15... h6 {[%clk 0:02:28.2]} 16. Bh4 {[%clk 0:02:19.8]} 16... Nxh4
{[%clk 0:02:25.6]} 0-1

[Event "*** Titled Tuesday Blitz"]
[Site "Chess.com"]
[Date "2020.04.28"]
[Round "8"]
[White "atalz0"]
[Black "AniJak"]
[Result "1-0"]
[WhiteElo "2434"]
[BlackElo "2262"]
[TimeControl "180+1"]
[EndTime "11:30:29 PDT"]
[Termination "atalz0 won by resignation"]

1. d4 {[%clk 0:03:00.9]} 1... d5 {[%clk 0:02:36.3]} 2. c4 {[%clk 0:02:59.7]}
2... e6 {[%clk 0:02:35.9]} 3. Nc3 {[%clk 0:02:59.4]} 3... Nf6 {[%clk 0:02:32]}
4. cxd5 {[%clk 0:02:59.1]} 4... exd5 {[%clk 0:02:31]} 5. Bg5 {[%clk 0:02:59.2]}
5... c6 {[%clk 0:02:30.5]} 6. e3 {[%clk 0:02:59.2]} 6... Be7 {[%clk 0:02:30.2]}
7. Bd3 {[%clk 0:02:58.7]} 7... O-O {[%clk 0:02:29.9]} 8. Nge2 {[%clk 0:02:58.8]}
8... Nbd7 {[%clk 0:02:29.3]} 9. Qc2 {[%clk 0:02:58.5]} 9... Re8 {[%clk
0:02:29.4]} 10. O-O {[%clk 0:02:58.2]} 10... Nf8 {[%clk 0:02:29.3]} 11. f3
{[%clk 0:02:58.3]} 11... Be6 {[%clk 0:02:22.2]} 12. Rad1 {[%clk 0:02:57.3]}
12... Rc8 {[%clk 0:02:19.8]} 13. e4 {[%clk 0:02:55.6]} 13... dxe4 {[%clk
0:02:18.5]} 14. fxe4 {[%clk 0:02:56.5]} 14... Ng4 {[%clk 0:02:17.3]} 15. Bxe7
{[%clk 0:02:37.4]} 15... Qxe7 {[%clk 0:02:15]} 16. Qd2 {[%clk 0:02:34.6]} 16...
Qd8 {[%clk 0:02:15.9]} 17. h3 {[%clk 0:02:28.5]} 17... Qe7 {[%clk 0:02:16.8]}
18. hxg4 {[%clk 0:02:27.9]} 1-0

[Event "*** Titled Tuesday Blitz"]
[Site "Chess.com"]
[Date "2020.04.28"]
[Round "8"]
[White "djogrodek1"]
[Black "adricalderon8"]
[Result "1-0"]
[WhiteElo "2563"]
[BlackElo "2420"]
[TimeControl "180+1"]
[EndTime "11:30:34 PDT"]
[Termination "djogrodek1 won by resignation"]

1. c4 {[%clk 0:03:00.9]} 1... e5 {[%clk 0:02:59.1]} 2. g3 {[%clk 0:03:00.8]}
2... Nf6 {[%clk 0:02:57.7]} 3. Bg2 {[%clk 0:03:00.4]} 3... h6 {[%clk 0:02:56.7]}
4. Nc3 {[%clk 0:02:44.2]} 4... Nc6 {[%clk 0:02:44.8]} 5. e3 {[%clk 0:02:43.2]}
5... Bb4 {[%clk 0:02:43.5]} 6. Nd5 {[%clk 0:02:43.2]} 6... Bc5 {[%clk
0:02:42.9]} 7. Ne2 {[%clk 0:02:43.1]} 7... O-O {[%clk 0:02:43]} 8. O-O {[%clk
0:02:43.2]} 8... a6 {[%clk 0:02:41.1]} 9. b3 {[%clk 0:02:42.6]} 9... d6 {[%clk
0:02:41.3]} 10. Bb2 {[%clk 0:02:42.8]} 10... Re8 {[%clk 0:02:26.6]} 11. d4
{[%clk 0:02:31.3]} 11... exd4 {[%clk 0:02:25.2]} 12. Nxd4 {[%clk 0:02:29.2]}
12... Ba7 {[%clk 0:02:25.8]} 13. Nxc6 {[%clk 0:02:26.2]} 13... bxc6 {[%clk
0:02:24.7]} 14. Nxf6+ {[%clk 0:02:26.5]} 14... gxf6 {[%clk 0:02:24.4]} 15. Bxc6
{[%clk 0:02:26.5]} 15... Bh3 {[%clk 0:02:21.3]} 16. Re1 {[%clk 0:02:21.1]} 16...
Re6 {[%clk 0:02:20.8]} 17. Qh5 {[%clk 0:02:20]} 1-0

[Event "*** Titled Tuesday Blitz"]
[Site "Chess.com"]
[Date "2020.04.28"]
[Round "8"]
[White "tylityli"]
[Black "AminMolaei"]
[Result "0-1"]
[WhiteElo "2330"]
[BlackElo "2514"]
[TimeControl "180+1"]
[EndTime "11:30:47 PDT"]
[Termination "AminMolaei won by resignation"]

1. e4 {[%clk 0:03:00.9]} 1... c5 {[%clk 0:03:00]} 2. Nf3 {[%clk 0:03:00]} 2...
g6 {[%clk 0:02:59.4]} 3. d4 {[%clk 0:03:00.2]} 3... cxd4 {[%clk 0:03:00.3]} 4.
Nxd4 {[%clk 0:03:00]} 4... Nc6 {[%clk 0:03:00.7]} 5. c3 {[%clk 0:03:00.2]} 5...
Bg7 {[%clk 0:02:58.7]} 6. Nc2 {[%clk 0:02:57.5]} 6... Nf6 {[%clk 0:02:58.5]} 7.
Nd2 {[%clk 0:02:53.1]} 7... d5 {[%clk 0:02:57.8]} 8. exd5 {[%clk 0:02:35.6]}
8... Nxd5 {[%clk 0:02:58.7]} 9. Bc4 {[%clk 0:02:32]} 9... O-O {[%clk 0:02:56.9]}
10. O-O {[%clk 0:02:30.3]} 10... Nb6 {[%clk 0:02:52.9]} 11. Be2 {[%clk
0:02:15.5]} 11... Qc7 {[%clk 0:02:43]} 12. Nc4 {[%clk 0:02:08.8]} 12... Rd8
{[%clk 0:02:41]} 0-1